fUST/lending_fUST_20240218
["ID","MTS","AMOUNT","RATE_DAILY","PERIOD"]
[314349839,1708215039352,-500.0,0.00027671,2]
[314349840,1708215039362,-647.56,0.00027671,2]
[314349841,1708215039372,-500.0,0.00027671,2]
[314349842,1708215039381,-500.0,0.00027671,2]
[314349843,1708215039391,-500.0,0.00027671,2]
[314349844,1708215039400,-500.0,0.00027671,2]
[314349845,1708215039409,-500.0,0.00027671,2]
[314349846,1708215039419,-500.0,0.00027671,2]
[314349847,1708215039428,-703.26,0.00027671,2]
[314349848,1708215039439,-500.0,0.00027671,2]
[314349849,1708215039449,-500.0,0.00027671,2]
[314349850,1708215039459,-500.0,0.00027671,2]
[314349851,1708215039468,-500.0,0.00027671,2]
[314349852,1708215039478,-700.85,0.00027671,2]
[314349853,1708215039487,-4018.76,0.00027671,2]
[314349854,1708215039497,-500.0,0.00027671,2]
[314349855,1708215039506,-500.0,0.00027671,2]
[314349856,1708215039516,-500.0,0.00027671,2]
[314349857,1708215039525,-3573.01,0.00027671,2]
[314349858,1708215039535,-2144.91,0.00027671,2]
[314349859,1708215039544,-500.0,0.00027671,2]
[314349861,1708215039553,-4068.96,0.00027671,2]
[314349863,1708215039562,-2222.75,0.00027671,2]
[314349864,1708215039571,-820.03,0.00027671,2]
[314349865,1708215039581,-2189.28,0.00027671,2]
[314349866,1708215039591,-517.07370122,0.00027671,2]
[314349867,1708215039600,-746.21,0.00027671,2]
[314349868,1708215039610,-636.25,0.00027671,2]
[314349869,1708215039619,-500.0,0.00027671,2]
[314349870,1708215039629,-500.0,0.00027671,2]
[314349871,1708215039639,-500.0,0.00027671,2]
[314349872,1708215039649,-500.0,0.00027671,2]
[314349873,1708215039658,-500.0,0.00027671,2]
[314349874,1708215039667,-500.0,0.00027671,2]
[314349875,1708215039676,-500.0,0.00027671,2]
[314349876,1708215039685,-500.0,0.00027671,2]
[314349877,1708215039694,-500.0,0.00027671,2]
[314349878,1708215039704,-500.0,0.00027671,2]
[314349879,1708215039714,-500.0,0.00027671,2]
[314349880,1708215039723,-500.0,0.00027671,2]
[314349881,1708215039732,-500.0,0.00027671,2]
[314349882,1708215039748,-500.0,0.00027671,2]
[314349883,1708215039763,-519.82,0.00027671,2]
[314349884,1708215039776,-500.0,0.00027671,2]
[314349885,1708215039788,-2763.91,0.00027671,2]
[314349886,1708215039802,-500.0,0.00027671,2]
[314349887,1708215039813,-1283.95825781,0.00027763,2]
[314349888,1708215039823,-621.386738,0.00027912,2]
[314349889,1708215039836,-500.0,0.00027945,2]
[314349890,1708215039847,-500.0,0.00027945,2]
[314349891,1708215039859,-500.0,0.00027945,2]
[314349892,1708215039872,-219.0763038,0.00027945,2]
[314349893,1708215039885,-537.64,0.00027945,2]
[314349894,1708215039897,-500.0,0.00027945,2]
[314349895,1708215039909,-500.0,0.00027945,2]
[314349896,1708215039921,-500.0,0.00027945,2]
[314349897,1708215039933,-647.56,0.00027945,2]
[314349898,1708215039944,-500.0,0.00027945,2]
[314349899,1708215039954,-500.0,0.00027945,2]
[314349900,1708215039966,-500.0,0.00027945,2]
[314349901,1708215039977,-500.0,0.00027945,2]
[314349902,1708215039989,-500.0,0.00027945,2]
[314349903,1708215040001,-500.0,0.00027945,2]
[314349904,1708215040012,-703.26,0.00027945,2]
[314349905,1708215040023,-500.0,0.00027945,2]
[314349906,1708215040034,-500.0,0.00027945,2]
[314349907,1708215040045,-500.0,0.00027945,2]
[314349908,1708215040057,-500.0,0.00027945,2]
[314349909,1708215040069,-700.85,0.00027945,2]
[314349910,1708215040080,-4018.76,0.00027945,2]
[314349911,1708215040090,-500.0,0.00027945,2]
[314349912,1708215040100,-635.23390049,0.00027945,2]
[314349913,1708215040113,-500.0,0.00027945,2]
[314349914,1708215040125,-3573.01,0.00027945,2]
[314349915,1708215040136,-2144.91,0.00027945,2]
[314349916,1708215040149,-500.0,0.00027945,2]
[314349917,1708215040162,-4068.96,0.00027945,2]
[314349918,1708215040174,-2222.75,0.00027945,2]
[314349919,1708215040185,-820.03,0.00027945,2]
[314349920,1708215040197,-2189.28,0.00027945,2]
[314349921,1708215040210,-746.21,0.00027945,2]
[314349922,1708215040222,-636.25,0.00027945,2]
[314349923,1708215040233,-500.0,0.00027945,2]
[314349924,1708215040244,-500.0,0.00027945,2]
[314349925,1708215040257,-500.0,0.00027945,2]
[314349926,1708215040270,-500.0,0.00027945,2]
[314349927,1708215040282,-500.0,0.00027945,2]
[314349928,1708215040295,-500.0,0.00027945,2]
[314349929,1708215040308,-500.0,0.00027945,2]
[314349931,1708215040318,-500.0,0.00027945,2]
[314349932,1708215040328,-500.0,0.00027945,2]
[314349933,1708215040338,-500.0,0.00027945,2]
[314349934,1708215040349,-500.0,0.00027945,2]
[314349935,1708215040359,-500.0,0.00027945,2]
[314349936,1708215040371,-500.0,0.00027945,2]
[314349937,1708215040382,-500.0,0.00027945,2]
[314349938,1708215040394,-519.82,0.00027945,2]
[314349939,1708215040405,-500.0,0.00027945,2]
[314349940,1708215040416,-2763.91,0.00027945,2]
[314349941,1708215040426,-155.0294556,0.00028133,2]
[314349942,1708215040438,-360.699347,0.00028134,2]
[314349943,1708215040449,-574.544313,0.00028134,2]
[314349944,1708215040460,-267.778765,0.00028134,2]
[314349945,1708215040470,-152.94541,0.00028134,2]
[314349946,1708215040481,-185.972015,0.00028134,2]
[314349947,1708215040491,-160.805866,0.00028134,2]
[314349948,1708215040502,-223.913519,0.00028134,2]
[314349949,1708215040513,-185.867045,0.00028134,2]
[314349950,1708215040524,-223.913519,0.00028134,2]
[314349951,1708215040535,-273.813915,0.00028134,2]
[314349952,1708215040546,-500.0,0.00028219,2]
[314349953,1708215040557,-500.0,0.00028219,2]
[314349954,1708215040568,-500.0,0.00028219,2]
[314349955,1708215040578,-537.64,0.00028219,2]
[314349956,1708215040590,-500.0,0.00028219,2]
[314349957,1708215040600,-500.0,0.00028219,2]
[314349958,1708215040611,-579.769935,0.00028219,2]
[314349959,1708215040622,-647.56,0.00028219,2]
[314349960,1708215040633,-500.0,0.00028219,2]
[314349961,1708215040644,-500.0,0.00028219,2]
[314349962,1708215040655,-473.52,0.00028219,2]
[314349963,1708215040666,-500.0,0.00028219,2]
[314349964,1708215040677,-500.0,0.00028219,2]
[314349965,1708215040687,-703.26,0.00028219,2]
[314349966,1708215040698,-500.0,0.00028219,2]
[314349967,1708215040708,-500.0,0.00028219,2]
[314349968,1708215040718,-500.0,0.00028219,2]
[314349969,1708215040729,-500.0,0.00028219,2]
[314349970,1708215040739,-700.85,0.00028219,2]
[314349971,1708215040750,-4018.76,0.00028219,2]
[314349972,1708215040761,-500.0,0.00028219,2]
[314349973,1708215040771,-500.0,0.00028219,2]
[314349974,1708215040782,-3573.01,0.00028219,2]
[314349975,1708215040792,-2144.91,0.00028219,2]
[314349976,1708215040802,-500.0,0.00028219,2]
[314349977,1708215040813,-4068.96,0.00028219,2]
[314349978,1708215040823,-2222.75,0.00028219,2]
[314349979,1708215040975,-820.03,0.00028219,2]
[314349980,1708215040990,-2189.28,0.00028219,2]
[314349981,1708215041000,-746.21,0.00028219,2]
[314349982,1708215041009,-636.25,0.00028219,2]
[314349983,1708215041019,-500.0,0.00028219,2]
[314349984,1708215041027,-500.0,0.00028219,2]
[314349985,1708215041036,-500.0,0.00028219,2]
[314349986,1708215041047,-500.0,0.00028219,2]
[314349987,1708215041056,-500.0,0.00028219,2]
[314349988,1708215041067,-500.0,0.00028219,2]
[314349989,1708215041077,-500.0,0.00028219,2]
[314349990,1708215041086,-500.0,0.00028219,2]
[314349991,1708215041096,-500.0,0.00028219,2]
[314349992,1708215041105,-500.0,0.00028219,2]
[314349993,1708215041114,-500.0,0.00028219,2]
[314349994,1708215041123,-500.0,0.00028219,2]
[314349995,1708215041132,-605.37,0.00028219,2]
[314349996,1708215041142,-223.7581717,0.00028219,2]
[314349997,1708215041152,-519.82,0.00028219,2]
[314349998,1708215041162,-500.0,0.00028219,2]
[314349999,1708215041171,-2763.91,0.00028219,2]
[314350000,1708215041181,-360.699347,0.00028486,2]
[314350001,1708215041190,-574.544313,0.00028486,2]
[314350002,1708215041199,-267.778765,0.00028486,2]
[314350003,1708215041209,-500.0,0.00028493,2]
[314350004,1708215041218,-500.0,0.00028493,2]
[314350005,1708215041227,-458.0464762,0.00028493,2]
[314350006,1708215041236,-537.64,0.00028493,2]
[314350007,1708215041245,-500.0,0.00028493,2]
[314350008,1708215041255,-647.56,0.00028493,2]
[314350009,1708215041264,-500.0,0.00028493,2]
[314350010,1708215041274,-500.0,0.00028493,2]
[314350011,1708215041283,-500.0,0.00028493,2]
[314350012,1708215041292,-536.36244291,0.00028493,2]
[314350013,1708215041301,-703.26,0.00028493,2]
[314350014,1708215041311,-500.0,0.00028493,2]
[314350015,1708215041321,-500.0,0.00028493,2]
[314350016,1708215041330,-500.0,0.00028493,2]
[314350017,1708215041339,-500.0,0.00028493,2]
[314350018,1708215041349,-700.85,0.00028493,2]
[314350019,1708215041358,-4018.76,0.00028493,2]
[314350020,1708215041367,-500.0,0.00028493,2]
[314350021,1708215041376,-500.0,0.00028493,2]
[314350022,1708215041386,-3573.01,0.00028493,2]
[314350023,1708215041396,-2144.91,0.00028493,2]
[314350024,1708215041405,-4068.96,0.00028493,2]
[314350025,1708215041414,-2222.75,0.00028493,2]
[314350026,1708215041424,-820.03,0.00028493,2]
[314350027,1708215041433,-2189.28,0.00028493,2]
[314350028,1708215041442,-746.21,0.00028493,2]
[314350029,1708215041452,-636.25,0.00028493,2]
[314350030,1708215041461,-500.0,0.00028493,2]
[314350031,1708215041470,-500.0,0.00028493,2]
[314350032,1708215041480,-500.0,0.00028493,2]
[314350033,1708215041489,-500.0,0.00028493,2]
[314350034,1708215041498,-500.0,0.00028493,2]
[314350035,1708215041507,-500.0,0.00028493,2]
[314350036,1708215041516,-500.0,0.00028493,2]
[314350037,1708215041526,-500.0,0.00028493,2]
[314350038,1708215041535,-500.0,0.00028493,2]
[314350039,1708215041544,-500.0,0.00028493,2]
[314350040,1708215041554,-437.865938,0.00028493,2]
[314350041,1708215041563,-500.0,0.00028493,2]
[314350042,1708215041573,-519.82,0.00028493,2]
[314350043,1708215041582,-500.0,0.00028493,2]
[314350044,1708215041591,-2763.91,0.00028493,2]
[314350045,1708215041601,-152.94541,0.00028603,2]
[314350046,1708215041610,-185.867045,0.00028603,2]
[314350047,1708215041619,-315.88,0.00028743,3]
[314350048,1708215041628,-1263.56,0.00028757,3]
[314350049,1708215041638,-631.78,0.00028757,3]
[314350050,1708215041648,-456.53041211,0.00028767,2]
[314350051,1708215041657,-500.0,0.00028767,2]
[314350052,1708215041666,-537.64,0.00028767,2]
[314350053,1708215041675,-500.0,0.00028767,2]
[314350054,1708215041684,-647.56,0.00028767,2]
[314350055,1708215041694,-500.0,0.00028767,2]
[314350056,1708215041704,-155.0,0.00028767,2]
[314350057,1708215041713,-441.0,0.00028767,2]
[314350058,1708215041722,-500.0,0.00028767,2]
[314350059,1708215041731,-703.26,0.00028767,2]
[314350060,1708215041740,-500.0,0.00028767,2]
[314350061,1708215041749,-572.43,0.00028767,2]
[314350062,1708215041758,-500.0,0.00028767,2]
[314350063,1708215041768,-500.0,0.00028767,2]
[314350064,1708215041777,-700.85,0.00028767,2]
[314350065,1708215041786,-4018.76,0.00028767,2]
[314350066,1708215041796,-500.0,0.00028767,2]
[314350067,1708215041806,-3573.01,0.00028767,2]
[314350068,1708215041815,-2144.91,0.00028767,2]
[314350069,1708215041824,-4068.96,0.00028767,2]
[314350070,1708215041833,-2222.75,0.00028767,2]
[314350071,1708215041842,-820.03,0.00028767,2]
[314350072,1708215041852,-2189.28,0.00028767,2]
[314350073,1708215041861,-746.21,0.00028767,2]
[314350074,1708215041871,-636.25,0.00028767,2]
[314350075,1708215041880,-500.0,0.00028767,2]
[314350076,1708215041890,-500.0,0.00028767,2]
[314350077,1708215041898,-500.0,0.00028767,2]
[314350078,1708215041907,-500.0,0.00028767,2]
[314350079,1708215041917,-500.0,0.00028767,2]
[314350080,1708215041925,-500.0,0.00028767,2]
[314350081,1708215041934,-500.0,0.00028767,2]
[314350082,1708215041944,-500.0,0.00028767,2]
[314350083,1708215041953,-500.0,0.00028767,2]
[314350084,1708215041962,-500.0,0.00028767,2]
[314350085,1708215041972,-500.0,0.00028767,2]
[314350086,1708215041981,-519.82,0.00028767,2]
[314350087,1708215041992,-2763.91,0.00028767,2]
[314350088,1708215042001,-360.699347,0.00028838,2]
[314350089,1708215042011,-574.544313,0.00028838,2]
[314350090,1708215042020,-267.778765,0.00028838,2]
[314350091,1708215042029,-1974.32885604,0.00029,7]
[314350092,1708215042039,-422.16862063,0.00029,2]
[314350093,1708215042048,-407.8,0.00029041,2]
[314350094,1708215042057,-537.64,0.00029041,2]
[314350095,1708215042067,-500.0,0.00029041,2]
[314350096,1708215042076,-647.56,0.00029041,2]
[314350097,1708215042085,-500.0,0.00029041,2]
[314350098,1708215042094,-703.26,0.00029041,2]
[314350099,1708215042103,-500.0,0.00029041,2]
[314350100,1708215042112,-500.0,0.00029041,2]
[314350101,1708215042122,-326.02,0.00029041,2]
[314350102,1708215042131,-700.85,0.00029041,2]
[314350103,1708215042140,-4018.76,0.00029041,2]
[314350104,1708215042150,-500.0,0.00029041,2]
[314350105,1708215042159,-3573.01,0.00029041,2]
[314350106,1708215042170,-2144.91,0.00029041,2]
[314350107,1708215042179,-4068.96,0.00029041,2]
[314350108,1708215042188,-2222.75,0.00029041,2]
[314350109,1708215042197,-820.03,0.00029041,2]
[314350110,1708215042208,-2189.28,0.00029041,2]
[314350111,1708215042217,-746.21,0.00029041,2]
[314350112,1708215042226,-636.25,0.00029041,2]
[314350113,1708215042235,-500.0,0.00029041,2]
[314350114,1708215042245,-159.1,0.00029041,2]
[314350115,1708215042255,-500.0,0.00029041,2]
[314350116,1708215042264,-500.0,0.00029041,2]
[314350117,1708215042274,-500.0,0.00029041,2]
[314350118,1708215042283,-500.0,0.00029041,2]
[314350119,1708215042292,-500.0,0.00029041,2]
[314350120,1708215042302,-500.0,0.00029041,2]
[314350121,1708215042311,-500.0,0.00029041,2]
[314350122,1708215042320,-483.486376,0.00029041,2]
[314350123,1708215042330,-500.0,0.00029041,2]
[314350124,1708215042339,-519.82,0.00029041,2]
[314350125,1708215042348,-2763.91,0.00029041,2]
[314350126,1708215042358,-152.94541,0.00029072,2]
[314350127,1708215042367,-185.867045,0.00029072,2]
[314350128,1708215042378,-306.765548,0.00029076,2]
[314350129,1708215042387,-247.149984,0.00029076,2]
[314350130,1708215042397,-360.699347,0.00029189,2]
[314350131,1708215042407,-574.544313,0.00029189,2]
[314350132,1708215042417,-267.778765,0.00029189,2]
[314350133,1708215042427,-1786.56049038,0.000293,2]
[314350134,1708215042436,-620.0693369,0.00029308,2]
[314350135,1708215042445,-537.64,0.00029315,2]
[314350136,1708215042454,-562.39804003,0.00029315,2]
[314350137,1708215042463,-647.56,0.00029315,2]
[314350138,1708215042472,-500.0,0.00029315,2]
[314350139,1708215042482,-703.26,0.00029315,2]
[314350140,1708215042491,-500.0,0.00029315,2]
[314350141,1708215042500,-500.0,0.00029315,2]
[314350142,1708215042509,-700.85,0.00029315,2]
[314350143,1708215042519,-4018.76,0.00029315,2]
[314350144,1708215042528,-500.0,0.00029315,2]
[314350145,1708215042537,-3573.01,0.00029315,2]
[314350146,1708215042547,-2144.91,0.00029315,2]
[314350147,1708215042556,-4068.96,0.00029315,2]
[314350148,1708215042565,-2222.75,0.00029315,2]
[314350149,1708215042574,-820.03,0.00029315,2]
[314350150,1708215042584,-2189.28,0.00029315,2]
[314350151,1708215042593,-746.21,0.00029315,2]
[314350153,1708215042603,-636.25,0.00029315,2]
[314350154,1708215042613,-500.0,0.00029315,2]
[314350155,1708215042622,-500.0,0.00029315,2]
[314350156,1708215042632,-500.0,0.00029315,2]
[314350157,1708215042642,-500.0,0.00029315,2]
[314350158,1708215042652,-500.0,0.00029315,2]
[314350160,1708215042661,-500.0,0.00029315,2]
[314350161,1708215042670,-500.0,0.00029315,2]
[314350162,1708215042680,-500.0,0.00029315,2]
[314350163,1708215042689,-519.82,0.00029315,2]
[314350164,1708215042699,-2763.91,0.00029315,2]
[314350165,1708215042708,-306.765548,0.00029439,2]
[314350166,1708215042717,-247.149984,0.00029439,2]
[314350167,1708215042726,-781.543,0.000295,30]
[314350168,1708215042736,-1000.0,0.000295,2]
[314350169,1708215042745,-5000.0,0.00029524,5]
[314350170,1708215042754,-360.699347,0.00029541,2]
[314350171,1708215042764,-574.544313,0.00029541,2]
[314350172,1708215042773,-267.778765,0.00029541,2]
[314350173,1708215042783,-185.972015,0.00029541,2]
[314350174,1708215042792,-160.805866,0.00029541,2]
[314350175,1708215042802,-152.94541,0.00029541,2]
[314350176,1708215042812,-185.867045,0.00029541,2]
[314350177,1708215042822,-160.24275126,0.00029589,3]
[314350178,1708215042832,-537.64,0.00029589,2]
[314350180,1708215042842,-647.56,0.00029589,2]
[314350181,1708215042851,-500.0,0.00029589,2]
[314350183,1708215042860,-703.26,0.00029589,2]
[314350184,1708215042869,-700.85,0.00029589,2]
[314350185,1708215042878,-4018.76,0.00029589,2]
[314350186,1708215042888,-500.0,0.00029589,2]
[314350187,1708215042897,-3573.01,0.00029589,2]
[314350188,1708215042907,-2144.91,0.00029589,2]
[314350189,1708215042916,-4068.96,0.00029589,2]
[314350190,1708215042925,-2222.75,0.00029589,2]
[314350191,1708215042934,-820.03,0.00029589,2]
[314350192,1708215042943,-2189.28,0.00029589,2]
[314350193,1708215042953,-746.21,0.00029589,2]
[314350194,1708215042962,-636.25,0.00029589,2]
[314350195,1708215042971,-500.0,0.00029589,2]
[314350196,1708215042981,-151.0,0.00029589,2]
[314350197,1708215042990,-500.0,0.00029589,2]
[314350198,1708215043001,-151.0,0.00029589,2]
[314350199,1708215043011,-500.0,0.00029589,2]
[314350200,1708215043020,-500.0,0.00029589,2]
[314350201,1708215043029,-500.0,0.00029589,2]
[314350202,1708215043039,-500.0,0.00029589,2]
[314350203,1708215043050,-500.0,0.00029589,2]
[314350204,1708215043059,-519.82,0.00029589,2]
[314350205,1708215043068,-2763.91,0.00029589,2]
[314350206,1708215043077,-306.765548,0.00029803,2]
[314350207,1708215043086,-247.149984,0.00029803,2]
[314350208,1708215043095,-537.64,0.00029863,2]
[314350209,1708215043186,-647.56,0.00029863,2]
[314350210,1708215043197,-500.0,0.00029863,2]
[314350211,1708215043205,-703.26,0.00029863,2]
[314350212,1708215043214,-700.85,0.00029863,2]
[314350213,1708215043223,-4018.76,0.00029863,2]
[314350214,1708215043233,-500.0,0.00029863,2]
[314350215,1708215043244,-3573.01,0.00029863,2]
[314350216,1708215043254,-2144.91,0.00029863,2]
[314350217,1708215043263,-4068.96,0.00029863,2]
[314350218,1708215043272,-2222.75,0.00029863,2]
[314350219,1708215043281,-820.03,0.00029863,2]
[314350220,1708215043290,-2189.28,0.00029863,2]
[314350221,1708215043300,-746.21,0.00029863,2]
[314350222,1708215043308,-636.25,0.00029863,2]
[314350223,1708215043318,-500.0,0.00029863,2]
[314350224,1708215043327,-500.0,0.00029863,2]
[314350225,1708215043336,-500.0,0.00029863,2]
[314350226,1708215043346,-500.0,0.00029863,2]
[314350227,1708215043355,-500.0,0.00029863,2]
[314350228,1708215043365,-500.0,0.00029863,2]
[314350229,1708215043375,-500.0,0.00029863,2]
[314350230,1708215043384,-519.82,0.00029863,2]
[314350231,1708215043396,-2763.91,0.00029863,2]
[314350232,1708215043406,-321.17151346,0.00029899,2]
[314350233,1708215043415,-155.09150399,0.00029998,2]
[314350234,1708215043425,-2755.17,0.00029999,2]
[314350235,1708215043434,-11020.71,0.00029999,2]
[314350236,1708215043444,-11020.71,0.00029999,2]
[314350237,1708215043453,-151.0,0.00029999,2]
[314350238,1708215043463,-151.0,0.00029999,2]
[314350239,1708215043472,-151.0,0.00029999,2]
[314350240,1708215043482,-514.991387,0.00029999,2]
[314350241,1708215043491,-514.991387,0.00029999,2]
[314350242,1708215043500,-208.973982,0.00029999,2]
[314350243,1708215043510,-208.973982,0.00029999,2]
[314350244,1708215043519,-51447.2328585,0.0003,7]
[314350245,1708215043591,-60218.43158396,0.0003,7]
[314350246,1708215043633,-500.0,0.00027945,2]
[314350247,1708215043644,-399.82195666,0.00028219,2]
[314350254,1708215044865,-500.0,0.00027397,2]
[314350255,1708215044874,-184.21395574,0.00028219,2]
[314350256,1708215044884,-2975.86282526,0.0003,7]
[314350279,1708216014353,-273.54659754,0.00025227,2]
[314350280,1708216014374,-87.09944626,0.00025227,2]
[314350392,1708216243295,-160.6399649,0.00024783,2]
[314350393,1708216243304,-891.66803563,0.00025184,2]
[314350394,1708216243314,-1775.68356085,0.00025185,2]
[314350395,1708216243323,-2295.05500356,0.00025189,2]
[314350396,1708216243347,-704.94499644,0.00025189,2]
[314350397,1708216243356,-1590.53860927,0.00025249,2]
[314350422,1708217362101,-273.54659754,0.00023146,2]
[314350423,1708217362123,-3011.04539772,0.00023146,2]
[314350469,1708217438468,-547.61612817,0.00023146,2]
[314350471,1708217438478,-500.98889378,0.00023147,3]
[314350472,1708217438487,-855.97217187,0.00023149,2]
[314350474,1708217438497,-168.638215,0.00023707,2]
[314350476,1708217438506,-24900.0,0.00023726,2]
[314350478,1708217438515,-166.65831569,0.000249,2]
[314350480,1708217438524,-891.66803563,0.00025,2]
[314350481,1708217438534,-302.6714654,0.0002525,2]
[314350483,1708217438543,-1551.81084976,0.0002525,2]
[314350485,1708217438552,-1779.82155096,0.0002525,2]
[314350487,1708217438561,-622.86554428,0.0002525,2]
[314350489,1708217438570,-2294.59966834,0.0002525,2]
[314350490,1708217438579,-218.10345216,0.00025459,2]
[314350492,1708217438588,-1222.4988425,0.0002546,2]
[314350494,1708217438597,-273.54659754,0.00027305,2]
[314350496,1708217438605,-301.59938943,0.00027306,2]
[314350498,1708217438615,-155.39436436,0.00027306,2]
[314350499,1708217438623,-525.0,0.00027306,2]
[314350501,1708217438633,-321.71689309,0.00027306,2]
[314350503,1708217438643,-698.09336308,0.00027306,2]
[314350505,1708217438652,-368.53,0.00027387,3]
[314350506,1708217438660,-184.27,0.00027387,3]
[314350508,1708217438669,-552.82,0.00027387,3]
[314350510,1708217438678,-1170.63,0.00027387,3]
[314350511,1708217438687,-975.53,0.00027387,3]
[314350513,1708217438697,-500.0,0.00027397,2]
[314350515,1708217438706,-709.07,0.00027397,2]
[314350516,1708217438716,-500.0,0.00027397,2]
[314350518,1708217438725,-500.0,0.00027397,2]
[314350519,1708217438734,-500.0,0.00027397,2]
[314350521,1708217438743,-223.7581717,0.00027397,2]
[314350523,1708217438752,-500.0,0.00027397,2]
[314350524,1708217438761,-500.0,0.00027397,2]
[314350526,1708217438770,-153.44114852,0.00027397,2]
[314350528,1708217438780,-500.0,0.00027397,2]
[314350530,1708217438788,-505.50491521,0.00027397,2]
[314350532,1708217438797,-505.27612881,0.00027397,2]
[314350533,1708217438806,-167.23199005,0.00027397,2]
[314350535,1708217438816,-504.01055325,0.00027397,2]
[314350536,1708217438828,-500.0,0.00027397,2]
[314350538,1708217438842,-518.6324567,0.00027397,2]
[314350540,1708217438851,-180.24851023,0.00027397,2]
[314350542,1708217438860,-579.24,0.00027397,2]
[314350544,1708217438870,-650.7,0.00027397,2]
[314350545,1708217438880,-500.0,0.00027397,2]
[314350547,1708217438889,-500.0,0.00027397,2]
[314350549,1708217438898,-500.0,0.00027397,2]
[314350551,1708217438909,-500.0,0.00027397,2]
[314350553,1708217438918,-500.0,0.00027397,2]
[314350554,1708217438927,-500.0,0.00027397,2]
[314350556,1708217438936,-500.00819368,0.00027397,2]
[314350558,1708217438945,-503.1545323,0.00027397,2]
[314350560,1708217438954,-155.0,0.00027397,2]
[314350562,1708217438963,-500.0,0.00027397,2]
[314350563,1708217438972,-500.0,0.00027397,2]
[314350565,1708217438981,-500.0,0.00027397,2]
[314350567,1708217438991,-517.44050524,0.00027397,2]
[314350569,1708217439000,-2255.9,0.00027397,2]
[314350571,1708217439009,-500.0,0.00027397,2]
[314350572,1708217439018,-2648.75,0.00027397,2]
[314350574,1708217439027,-500.0,0.00027397,2]
[314350576,1708217439036,-500.0,0.00027397,2]
[314350578,1708217439045,-500.0,0.00027397,2]
[314350579,1708217439054,-500.0,0.00027397,2]
[314350582,1708217439073,-500.0,0.00027397,2]
[314350584,1708217439085,-500.0,0.00027397,2]
[314350586,1708217439094,-500.0,0.00027397,2]
[314350587,1708217439103,-3866.53,0.00027397,2]
[314350589,1708217439113,-500.0,0.00027397,2]
[314350591,1708217439122,-500.0,0.00027397,2]
[314350593,1708217439131,-500.0,0.00027397,2]
[314350594,1708217439141,-727.29,0.00027397,2]
[314350596,1708217439150,-500.0,0.00027397,2]
[314350598,1708217439160,-500.0,0.00027397,2]
[314350600,1708217439170,-500.0,0.00027397,2]
[314350601,1708217439180,-500.0,0.00027397,2]
[314350602,1708217439189,-418.32494255,0.00027397,2]
[314350603,1708217439200,-500.0,0.00027397,2]
[314350604,1708217439209,-2198.72,0.00027397,2]
[314350606,1708217439219,-500.0,0.00027397,2]
[314350607,1708217439228,-500.0,0.00027397,2]
[314350608,1708217439237,-500.0,0.00027397,2]
[314350610,1708217439247,-2037.52,0.00027397,2]
[314350612,1708217439256,-311.36704535,0.00027397,2]
[314350613,1708217439265,-500.0,0.00027397,2]